[Event "Austria Championship Blitz 2024"]
[Site "Innsbruck"]
[Date "2024.06.01"]
[Round "8.7"]
[White "Wetscher, Wolfgang"]
[Black "Schnegg, Daniel"]
[Result "1/2-1/2"]
[ECO "A00"]
[WhiteElo "1937"]
[BlackElo "2115"]
[Annotator "RC"]
[PlyCount "138"]
[EventDate "2024.06.01"]
[EventType "swiss"]
[EventCountry "AUT"]
[SourceTitle "playchess.com"]
[Source "ChessBase"]
[SourceQuality "1"]
[TimeControl "180+2"]

1. c3 {[%emt 0:00:02]} g6 {[%emt 0:00:02]} 2. Qc2 {[%emt 0:00:00]} Bg7 {[%emt 0:00:01]} 3. d3 {[%emt 0:00:01]} e6 {[%emt 0:00:01]} 4. Nd2 {[%emt 0:00:00]} Ne7 5. e4 O-O {[%emt 0:00:03]} 6. Ngf3 {[%emt 0:00:01]} d6 {[%emt 0:00:00]} 7. Be2 {[%emt 0:00:01]} b6 {[%emt 0:00:01]} 8. Nf1 {[%emt 0:00:00]} Bb7 {[%emt 0:00:01]} 9. Ng3 {[%emt 0:00:01]} Nd7 {[%emt 0:03:11]} 10. Bd2 d5 {[%emt 0:00:00]} 11. Qc1 {[%emt 0:00:09]} Re8 {[%emt 0:00:00]} 12. Bh6 {[%emt 0:00:05]} Bh8 {[%emt 0:00:00]} 13. Bd2 {[%emt 0:00:02]} dxe4 {[%emt 0:00:00]} 14. dxe4 {[%emt 0:00:03]} Nc5 {[%emt 0:00:00]} 15. Qc2 {[%emt 0:00:06]} a5 {[%emt 0:00:00]} 16. Rd1 {[%emt 0:00:09]} Qc8 {[%emt 0:00:00]} 17. O-O {[%emt 0:00:13]} Ba6 {[%emt 0:00:00]} 18. Bxa6 {[%emt 0:00:09]} Qxa6 {[%emt 0:00:00]} 19. Be3 {[%emt 0:00:09]} Qb5 {[%emt 0:00:00]} 20. Nd4 {[%emt 0:00:17]} Qa4 {[%emt 0:00:00]} 21. b3 {[%emt 0:00:20]} Qd7 {[%emt 0:00:00]} 22. Ndf5 {[%emt 0:00:15]} Qc8 {[%emt 0:00:00]} 23. Nxe7+ {[%emt 0:00:06]} Rxe7 {[%emt 0:00:00]} 24. Bd4 {[%emt 0:00:13]} Nd7 {[%emt 0:00:00]} 25. Bxh8 {[%emt 0:00:03]} Kxh8 {[%emt 0:00:00]} 26. Rd2 {[%emt 0:00:04]} Nc5 {[%emt 0:00:00]} 27. Rfd1 {[%emt 0:00:04]} Qe8 {[%emt 0:00:00]} 28. f3 {[%emt 0:00:05]} Qc6 {[%emt 0:00:00]} 29. Ne2 {[%emt 0:00:03]} b5 {[%emt 0:00:00]} 30. Nc1 {[%emt 0:00:07]} Qb6 {[%emt 0:00:00]} 31. Kh1 {[%emt 0:00:03]} Rae8 {[%emt 0:00:00]} 32. Nd3 {[%emt 0:00:03]} Nd7 {[%emt 0:00:00]} 33. Nf2 {[%emt 0:00:06]} Qc6 {[%emt 0:00:00]} 34. c4 {[%emt 0:00:15]} b4 {[%emt 0:00:00]} 35. Rd4 {[%emt 0:00:13]} Nc5 {[%emt 0:00:00]} 36. R4d2 {[%emt 0:00:05]} Kg8 {[%emt 0:00:00]} 37. Nd3 {[%emt 0:00:01]} Nd7 {[%emt 0:00:00]} 38. Qb2 {[%emt 0:00:02]} f6 {[%emt 0:00:00]} 39. Qc2 {[%emt 0:00:02]} Kf7 40. Qb2 Nb6 {[%emt 0:00:00]} 41. Qc2 {[%emt 0:00:02]} Rd7 {[%emt 0:00:00]} 42. Nf2 {[%emt 0:00:02]} Red8 {[%emt 0:00:00]} 43. Rxd7+ {[%emt 0:00:46]} Rxd7 {[%emt 0:01:08]} 44. Rxd7+ {[%emt 0:00:00]} Qxd7 {[%emt 0:00:00]} 45. Qd3 {[%emt 0:00:00]} e5 {[%emt 0:00:00]} 46. Qxd7+ {[%emt 0:00:00]} Nxd7 {[%emt 0:00:00]} 47. Nd3 {[%emt 0:00:00]} Ke6 {[%emt 0:00:00]} 48. Kg1 {[%emt 0:00:00]} Kd6 {[%emt 0:00:00]} 49. Kf2 {[%emt 0:00:00]} f5 {[%emt 0:00:00]} 50. Ke3 {[%emt 0:00:00]} Nf8 {[%emt 0:00:00]} 51. exf5 {[%emt 0:00:00]} gxf5 {[%emt 0:00:00]} 52. g4 {[%emt 0:00:00]} e4 {[%emt 0:00:00]} 53. Nf4 {[%emt 0:00:00]} exf3 {[%emt 0:00:00]} 54. gxf5 {[%emt 0:00:03]} Ke5 {[%emt 0:00:00]} 55. Kxf3 {[%emt 0:00:03]} Kxf5 {[%emt 0:00:00]} 56. Nd3 {[%emt 0:00:02]} Ne6 {[%emt 0:00:00]} 57. Ke3 {[%emt 0:00:03]} h6 {[%emt 0:00:00]} 58. h3 {[%emt 0:00:01]} h5 {[%emt 0:00:00]} 59. c5 {[%emt 0:00:07]} Kg5 {[%emt 0:00:06]} 60. Ke4 {[%emt 0:00:03]} Kh4 {[%emt 0:00:02]} 61. Ke5 {[%emt 0:00:05]} Nd8 {[%emt 0:00:03]} 62. Nf4 {[%emt 0:00:04]} Kg5 {[%emt 0:00:03]} 63. Ne6+ {[%emt 0:00:02]} Nxe6 {[%emt 0:00:03]} 64. Kxe6 {[%emt 0:00:01]} Kh4 {[%emt 0:00:01]} 65. Kd7 {[%emt 0:00:00]} Kxh3 {[%emt 0:00:01]} 66. Kxc7 {[%emt 0:00:01]} Kg3 {[%emt 0:00:02]} 67. Kd7 {[%emt 0:00:02]} h4 {[%emt 0:00:01]} 68. c6 {[%emt 0:00:00]} h3 {[%emt 0:00:01]} 69. c7 {[%emt 0:00:01]} h2 {[%emt 0:00:01]} 1/2-1/2

[Event "Austria Championship Blitz 2024"]
[Site "Innsbruck"]
[Date "2024.06.01"]
[Round "8.8"]
[White "Binder, Moriz"]
[Black "Cafasso, Elia"]
[Result "1-0"]
[ECO "D02"]
[WhiteElo "2210"]
[BlackElo "2178"]
[Annotator "RC"]
[PlyCount "64"]
[EventDate "2024.06.01"]
[EventType "swiss"]
[EventCountry "AUT"]
[SourceTitle "playchess.com"]
[Source "ChessBase"]
[SourceQuality "1"]
[TimeControl "180+2"]

1. d4 {[%emt 0:00:01]} Nf6 {[%emt 0:00:01]} 2. Nf3 {[%emt 0:00:01]} d5 {[%emt 0:00:01]} 3. g3 {[%emt 0:00:04]} g6 {[%emt 0:00:01]} 4. Bg2 {[%emt 0:00:02]} Bg7 {[%emt 0:00:01]} 5. O-O {[%emt 0:00:01]} O-O {[%emt 0:00:02]} 6. b4 {[%emt 0:00:02]} c6 {[%emt 0:00:06]} 7. Bb2 {[%emt 0:00:03]} Bf5 {[%emt 0:00:05]} 8. Nbd2 {[%emt 0:00:03]} Nbd7 {[%emt 0:00:07]} 9. c4 {[%emt 0:00:03]} Re8 {[%emt 0:00:03]} 10. a3 {[%emt 0:00:06]} Ne4 {[%emt 0:00:06]} 11. Nh4 {[%emt 0:00:12]} Nxd2 {[%emt 0:00:05]} 12. Qxd2 {[%emt 0:00:14]} Nb6 {[%emt 0:00:16]} 13. cxd5 {[%emt 0:00:09]} cxd5 {[%emt 0:00:11]} 14. Nxf5 {[%emt 0:00:15]} gxf5 {[%emt 0:00:01]} 15. Qd3 {[%emt 0:00:02]} e6 {[%emt 0:00:04]} 16. Bc1 {[%emt 0:00:04]} Rc8 {[%emt 0:00:06]} 17. Bf4 {[%emt 0:00:03]} Qd7 {[%emt 0:00:10]} 18. Rfc1 {[%emt 0:00:03]} Nc4 {[%emt 0:00:06]} 19. a4 {[%emt 0:00:04]} a6 {[%emt 0:00:07]} 20. a5 {[%emt 0:00:26]} Rc6 {[%emt 0:00:05]} 21. Rab1 {[%emt 0:00:27]} Rec8 {[%emt 0:00:03]} 22. h4 {[%emt 0:00:02]} Bf8 {[%emt 0:00:13]} 23. Kh2 {[%emt 0:00:15]} Bd6 {[%emt 0:00:15]} 24. Bxd6 {[%emt 0:00:17]} Qxd6 {[%emt 0:00:01]} 25. b5 {[%emt 0:00:01]} R6c7 {[%emt 0:00:15]} 26. Bf3 {[%emt 0:00:22]} Nxa5 {[%emt 0:00:18]} 27. Rxc7 {[%emt 0:00:03]} Rxc7 {[%emt 0:00:05]} 28. bxa6 {[%emt 0:00:02]} Qxa6 {[%emt 0:00:11]} 29. Qd2 {[%emt 0:00:17]} f6 {[%emt 0:00:37]} 30. Qh6 {[%emt 0:00:06]} Rf7 {[%emt 0:00:09]} 31. Bh5 {[%emt 0:00:01]} Rf8 {[%emt 0:00:06]} 32. Qf4 {[%emt 0:00:04]} Qc6 {[%emt 0:00:09]} 1-0

[Event "Austria Championship Blitz 2024"]
[Site "Innsbruck"]
[Date "2024.06.01"]
[Round "8.9"]
[White "Polterauer, Chiara"]
[Black "Hengl, Philip"]
[Result "1/2-1/2"]
[ECO "B12"]
[WhiteElo "2136"]
[BlackElo "2173"]
[Annotator "RC"]
[PlyCount "113"]
[EventDate "2024.06.01"]
[EventType "swiss"]
[EventCountry "AUT"]
[SourceTitle "playchess.com"]
[Source "ChessBase"]
[SourceQuality "1"]
[TimeControl "180+2"]

1. e4 {[%emt 0:00:01]} c6 {[%emt 0:00:10]} 2. d4 {[%emt 0:00:01]} d5 {[%emt 0:00:01]} 3. e5 {[%emt 0:00:01]} Bf5 {[%emt 0:00:01]} 4. h4 {[%emt 0:00:02]} h5 {[%emt 0:00:01]} 5. Bg5 {[%emt 0:00:02]} Qb6 {[%emt 0:00:05]} 6. Bd3 {[%emt 0:00:05]} Bxd3 {[%emt 0:00:01]} 7. Qxd3 {[%emt 0:00:01]} e6 {[%emt 0:00:01]} 8. Nd2 {[%emt 0:00:10]} Nh6 {[%emt 0:00:05]} 9. Ne2 {[%emt 0:00:08]} Nf5 {[%emt 0:00:03]} 10. O-O {[%emt 0:00:11]} Qa6 {[%emt 0:00:01]} 11. Qf3 {[%emt 0:00:14]} Nd7 {[%emt 0:00:03]} 12. g3 {[%emt 0:00:05]} c5 {[%emt 0:00:10]} 13. c3 {[%emt 0:00:05]} Rc8 {[%emt 0:00:09]} 14. a3 {[%emt 0:00:06]} Be7 {[%emt 0:00:16]} 15. Bxe7 {[%emt 0:00:05]} Nxe7 {[%emt 0:00:02]} 16. Rac1 {[%emt 0:00:05]} Nf5 {[%emt 0:00:04]} 17. Nb3 {[%emt 0:00:15]} g6 {[%emt 0:00:24]} 18. Nxc5 {[%emt 0:00:11]} Rxc5 {[%emt 0:00:15]} 19. dxc5 {[%emt 0:00:03]} Nxe5 {[%emt 0:00:01]} 20. Qf4 {[%emt 0:00:20]} Qxe2 {[%emt 0:00:02]} 21. Kg2 {[%emt 0:00:04]} Qe4+ {[%emt 0:00:27]} 22. Qxe4 {[%emt 0:00:07]} dxe4 {[%emt 0:00:01]} 23. Rce1 {[%emt 0:00:01]} Nd3 {[%emt 0:00:12]} 24. Rxe4 {[%emt 0:00:01]} Nxc5 {[%emt 0:00:03]} 25. Rc4 {[%emt 0:00:12]} b6 {[%emt 0:00:01]} 26. b4 {[%emt 0:00:03]} Nd6 {[%emt 0:00:03]} 27. Rd4 {[%emt 0:00:08]} Ncb7 {[%emt 0:00:02]} 28. c4 {[%emt 0:00:04]} Ke7 {[%emt 0:00:01]} 29. c5 {[%emt 0:00:09]} bxc5 {[%emt 0:00:02]} 30. bxc5 {[%emt 0:00:00]} Nxc5 {[%emt 0:00:08]} 31. Rc1 {[%emt 0:00:01]} Nd7 {[%emt 0:00:06]} 32. Rcd1 {[%emt 0:00:04]} Nb6 {[%emt 0:00:14]} 33. Rxd6 {[%emt 0:00:01]} Nd5 {[%emt 0:00:02]} 34. Ra6 {[%emt 0:00:02]} Rc8 {[%emt 0:00:17]} 35. Rxa7+ {[%emt 0:00:03]} Kf6 {[%emt 0:00:01]} 36. Rd2 {[%emt 0:00:10]} Rc3 {[%emt 0:00:07]} 37. a4 {[%emt 0:00:02]} Ra3 {[%emt 0:00:01]} 38. a5 {[%emt 0:00:01]} Kg7 {[%emt 0:00:06]} 39. a6 {[%emt 0:00:04]} Kf6 {[%emt 0:00:08]} 40. Rb2 {[%emt 0:00:06]} Ra4 {[%emt 0:00:09]} 41. Rbb7 {[%emt 0:00:07]} Ra2 {[%emt 0:00:01]} 42. Rxf7+ {[%emt 0:00:02]} Ke5 {[%emt 0:00:00]} 43. Rf3 {[%emt 0:00:07]} Nb4 {[%emt 0:00:03]} 44. Re3+ {[%emt 0:00:02]} Kf6 {[%emt 0:00:02]} 45. Rf3+ {[%emt 0:00:16]} Ke5 {[%emt 0:00:01]} 46. Rb3 {[%emt 0:00:08]} Rxa6 {[%emt 0:00:13]} 47. Rxa6 {[%emt 0:00:01]} Nxa6 {[%emt 0:00:01]} 48. Rb5+ {[%emt 0:00:00]} Kf6 {[%emt 0:00:02]} 49. f4 {[%emt 0:00:04]} Nc7 {[%emt 0:00:01]} 50. Rb7 {[%emt 0:00:03]} Nd5 {[%emt 0:00:02]} 51. Ra7 {[%emt 0:00:03]} Ne3+ {[%emt 0:00:01]} 52. Kf3 {[%emt 0:00:01]} Nf5 {[%emt 0:00:01]} 53. Ra6 {[%emt 0:00:02]} Nd4+ {[%emt 0:00:02]} 54. Ke4 {[%emt 0:00:01]} Nf5 {[%emt 0:00:01]} 55. Kf3 {[%emt 0:00:03]} Nd4+ {[%emt 0:00:01]} 56. Ke4 {[%emt 0:00:05]} Nf5 {[%emt 0:00:01]} 57. Kf3 {[%emt 0:00:03]} 1/2-1/2

[Event "Austria Championship Blitz 2024"]
[Site "Innsbruck"]
[Date "2024.06.01"]
[Round "8.10"]
[White "Kranzl, Peter"]
[Black "Zanon, Magnus"]
[Result "1/2-1/2"]
[ECO "C07"]
[WhiteElo "2157"]
[BlackElo "2092"]
[Annotator "RC"]
[PlyCount "121"]
[EventDate "2024.06.01"]
[EventType "swiss"]
[EventCountry "AUT"]
[SourceTitle "playchess.com"]
[Source "ChessBase"]
[SourceQuality "1"]
[TimeControl "180+2"]

1. e4 {[%emt 0:00:02]} e6 {[%emt 0:00:01]} 2. d4 {[%emt 0:00:02]} d5 {[%emt 0:00:01]} 3. Nd2 {[%emt 0:00:02]} c5 {[%emt 0:00:01]} 4. exd5 {[%emt 0:00:02]} Qxd5 {[%emt 0:00:01]} 5. Ngf3 {[%emt 0:00:02]} cxd4 {[%emt 0:00:02]} 6. Bc4 {[%emt 0:00:01]} Qd7 {[%emt 0:00:02]} 7. Qe2 {[%emt 0:00:03]} a6 {[%emt 0:00:01]} 8. Nb3 {[%emt 0:00:09]} Nc6 {[%emt 0:00:02]} 9. Bd2 {[%emt 0:00:06]} Nf6 {[%emt 0:00:09]} 10. O-O-O {[%emt 0:00:03]} b5 {[%emt 0:00:28]} 11. Bd3 {[%emt 0:00:03]} Bb7 {[%emt 0:00:19]} 12. Bg5 {[%emt 0:00:23]} Be7 {[%emt 0:00:02]} 13. Nbxd4 {[%emt 0:00:08]} O-O {[%emt 0:00:12]} 14. Nxc6 {[%emt 0:00:08]} Qxc6 {[%emt 0:00:01]} 15. Kb1 {[%emt 0:00:23]} Rac8 {[%emt 0:00:35]} 16. Ne5 {[%emt 0:00:31]} Qc7 {[%emt 0:00:19]} 17. Bxf6 {[%emt 0:00:10]} Bxf6 {[%emt 0:00:07]} 18. Nd7 {[%emt 0:00:06]} Rfd8 {[%emt 0:00:21]} 19. Nxf6+ {[%emt 0:00:03]} gxf6 {[%emt 0:00:01]} 20. Qg4+ {[%emt 0:00:14]} Kf8 {[%emt 0:00:01]} 21. Qh4 {[%emt 0:00:13]} Ke7 {[%emt 0:00:03]} 22. f3 {[%emt 0:00:12]} a5 {[%emt 0:00:09]} 23. Rhe1 {[%emt 0:00:13]} a4 {[%emt 0:00:05]} 24. Bxh7 {[%emt 0:00:08]} a3 {[%emt 0:00:06]} 25. Qb4+ {[%emt 0:00:06]} Qc5 {[%emt 0:00:02]} 26. Qxc5+ {[%emt 0:00:10]} Rxc5 {[%emt 0:00:01]} 27. Bd3 {[%emt 0:00:04]} b4 {[%emt 0:00:09]} 28. b3 {[%emt 0:00:03]} Rh8 {[%emt 0:00:06]} 29. h3 {[%emt 0:00:01]} Rg8 {[%emt 0:00:01]} 30. Rd2 {[%emt 0:00:01]} Rcg5 {[%emt 0:00:03]} 31. Ree2 {[%emt 0:00:01]} Bxf3 {[%emt 0:00:08]} 32. Rf2 {[%emt 0:00:09]} Rxg2 {[%emt 0:00:04]} 33. Rxg2 {[%emt 0:00:03]} Rxg2 {[%emt 0:00:02]} 34. Rxg2 {[%emt 0:00:00]} Bxg2 {[%emt 0:00:01]} 35. h4 {[%emt 0:00:01]} f5 {[%emt 0:00:01]} 36. c3 {[%emt 0:00:01]} bxc3 {[%emt 0:00:03]} 37. Kc2 {[%emt 0:00:01]} e5 {[%emt 0:00:19]} 38. Bxf5 {[%emt 0:00:03]} Kf6 {[%emt 0:00:00]} 39. Bd3 {[%emt 0:00:01]} Ke6 {[%emt 0:00:03]} 40. Kxc3 {[%emt 0:00:01]} f5 {[%emt 0:00:02]} 41. b4 {[%emt 0:00:01]} Bb7 {[%emt 0:00:03]} 42. h5 {[%emt 0:00:03]} e4 {[%emt 0:00:01]} 43. Bc4+ {[%emt 0:00:01]} Kf6 {[%emt 0:00:00]} 44. Kd4 {[%emt 0:00:02]} Kg5 {[%emt 0:00:01]} 45. Bf7 {[%emt 0:00:02]} Ba6 {[%emt 0:00:07]} 46. Bc4 {[%emt 0:00:04]} Bb7 {[%emt 0:00:03]} 47. b5 {[%emt 0:00:01]} Kxh5 {[%emt 0:00:01]} 48. b6 {[%emt 0:00:03]} Kg4 {[%emt 0:00:02]} 49. Bd5 {[%emt 0:00:02]} Ba6 {[%emt 0:00:00]} 50. b7 {[%emt 0:00:01]} Bxb7 {[%emt 0:00:01]} 51. Bxb7 {[%emt 0:00:01]} Kf3 {[%emt 0:00:04]} 52. Bd5 {[%emt 0:00:04]} Kf2 {[%emt 0:00:03]} 53. Bxe4 {[%emt 0:00:01]} fxe4 {[%emt 0:00:01]} 54. Kxe4 {[%emt 0:00:01]} Ke2 {[%emt 0:00:00]} 55. Kd4 {[%emt 0:00:02]} Kd2 {[%emt 0:00:01]} 56. Kc4 {[%emt 0:00:01]} Kc2 {[%emt 0:00:12]} 57. Kd4 {[%emt 0:00:03]} Kb2 {[%emt 0:00:00]} 58. Kd3 {[%emt 0:00:01]} Kxa2 {[%emt 0:00:00]} 59. Kc2 {[%emt 0:00:01]} Ka1 {[%emt 0:00:00]} 60. Kc1 {[%emt 0:00:00]} a2 61. Kc2 1/2-1/2

[Event "Austria Championship Blitz 2024"]
[Site "Innsbruck"]
[Date "2024.06.01"]
[Round "8.12"]
[White "Tumanyan, Gor"]
[Black "Mira, Helene"]
[Result "1-0"]
[ECO "B07"]
[WhiteElo "1992"]
[BlackElo "2047"]
[Annotator "RC"]
[PlyCount "141"]
[EventDate "2024.06.01"]
[EventType "swiss"]
[EventCountry "AUT"]
[SourceTitle "playchess.com"]
[Source "ChessBase"]
[SourceQuality "1"]
[TimeControl "180+2"]

1. e4 {[%emt 0:00:02]} d6 {[%emt 0:00:01]} 2. d4 {[%emt 0:00:03]} Nf6 {[%emt 0:00:01]} 3. Nc3 {[%emt 0:00:04]} c6 {[%emt 0:00:01]} 4. g3 {[%emt 0:00:03]} Qa5 {[%emt 0:00:02]} 5. Bg2 {[%emt 0:00:04]} e5 {[%emt 0:00:02]} 6. Nge2 {[%emt 0:00:10]} b5 {[%emt 0:00:06]} 7. O-O {[%emt 0:00:24]} b4 {[%emt 0:00:02]} 8. Nb1 {[%emt 0:00:10]} Ba6 {[%emt 0:00:02]} 9. Re1 {[%emt 0:00:10]} Qb6 {[%emt 0:00:07]} 10. b3 {[%emt 0:01:24]} Bxe2 {[%emt 0:00:09]} 11. Rxe2 {[%emt 0:00:02]} exd4 {[%emt 0:00:02]} 12. e5 {[%emt 0:00:06]} dxe5 {[%emt 0:00:03]} 13. Rxe5+ {[%emt 0:00:02]} Be7 {[%emt 0:00:01]} 14. Qe2 {[%emt 0:00:10]} Qc7 {[%emt 0:00:05]} 15. Bf4 {[%emt 0:00:04]} Qd7 {[%emt 0:00:12]} 16. Bh3 {[%emt 0:00:05]} Qd8 {[%emt 0:00:04]} 17. Nd2 {[%emt 0:00:04]} Nd5 {[%emt 0:00:01]} 18. Re1 {[%emt 0:00:23]} Nd7 {[%emt 0:00:23]} 19. Rxd5 {[%emt 0:00:01]} cxd5 {[%emt 0:00:02]} 20. Bd6 {[%emt 0:00:01]} O-O {[%emt 0:00:05]} 21. Bxe7 {[%emt 0:00:01]} Qc7 {[%emt 0:00:05]} 22. Bxf8 {[%emt 0:00:01]} Rxf8 {[%emt 0:00:03]} 23. Bxd7 {[%emt 0:00:02]} Qxd7 {[%emt 0:00:01]} 24. Nf3 {[%emt 0:00:03]} Qg4 {[%emt 0:00:07]} 25. Ne5 {[%emt 0:00:04]} Qf5 {[%emt 0:00:06]} 26. Qd3 {[%emt 0:00:02]} Qe6 {[%emt 0:00:03]} 27. Nf3 {[%emt 0:00:01]} Qc6 {[%emt 0:00:07]} 28. Nxd4 {[%emt 0:00:01]} Qb7 {[%emt 0:00:04]} 29. Re3 {[%emt 0:00:05]} g6 {[%emt 0:00:01]} 30. Qe2 {[%emt 0:00:02]} Qb6 {[%emt 0:00:04]} 31. Nf3 {[%emt 0:00:02]} d4 {[%emt 0:00:02]} 32. Re8 {[%emt 0:00:01]} Rxe8 {[%emt 0:00:06]} 33. Qxe8+ {[%emt 0:00:01]} Kg7 {[%emt 0:00:00]} 34. Qe5+ {[%emt 0:00:01]} f6 {[%emt 0:00:04]} 35. Qxd4 {[%emt 0:00:01]} Qc6 {[%emt 0:00:04]} 36. Ne1 {[%emt 0:00:02]} a5 {[%emt 0:00:04]} 37. Qc4 {[%emt 0:00:06]} Qe8 {[%emt 0:00:03]} 38. Kf1 {[%emt 0:00:02]} Qd7 {[%emt 0:00:04]} 39. Kg1 {[%emt 0:00:02]} Qd1 {[%emt 0:00:05]} 40. Qe4 {[%emt 0:00:01]} h5 {[%emt 0:00:05]} 41. Kg2 {[%emt 0:00:02]} Qb1 {[%emt 0:00:02]} 42. Qe7+ {[%emt 0:00:04]} Kh6 {[%emt 0:00:01]} 43. Nf3 {[%emt 0:00:02]} Qb2 {[%emt 0:00:05]} 44. Qe3+ {[%emt 0:00:03]} g5 {[%emt 0:00:03]} 45. Qd3 {[%emt 0:00:02]} Qxa2 {[%emt 0:00:07]} 46. Qd4 {[%emt 0:00:03]} Kg6 {[%emt 0:00:04]} 47. Qe4+ {[%emt 0:00:02]} Kg7 {[%emt 0:00:02]} 48. Qe7+ {[%emt 0:00:01]} Kg6 {[%emt 0:00:01]} 49. Qe4+ {[%emt 0:00:02]} Kh6 {[%emt 0:00:03]} 50. Qf5 {[%emt 0:00:01]} Qb2 {[%emt 0:00:02]} 51. Qxa5 {[%emt 0:00:01]} Qxc2 {[%emt 0:00:04]} 52. Qxb4 {[%emt 0:00:02]} Qc6 {[%emt 0:00:03]} 53. Qf8+ {[%emt 0:00:01]} Kh7 {[%emt 0:00:02]} 54. Qf7+ {[%emt 0:00:02]} Kh6 {[%emt 0:00:02]} 55. Qc4 {[%emt 0:00:03]} Qb7 {[%emt 0:00:02]} 56. Qc3 {[%emt 0:00:04]} Kg6 {[%emt 0:00:02]} 57. Kg1 {[%emt 0:00:01]} Qe4 {[%emt 0:00:04]} 58. b4 {[%emt 0:00:00]} Qb1+ {[%emt 0:00:03]} 59. Kg2 {[%emt 0:00:02]} Qe4 {[%emt 0:00:01]} 60. Kf1 {[%emt 0:00:04]} Qb1+ {[%emt 0:00:03]} 61. Ne1 {[%emt 0:00:01]} Qe4 {[%emt 0:00:02]} 62. Qc2 {[%emt 0:00:01]} Kf5 {[%emt 0:00:04]} 63. Qxe4+ {[%emt 0:00:02]} Kxe4 {[%emt 0:00:01]} 64. Ke2 {[%emt 0:00:00]} Kd4 {[%emt 0:00:01]} 65. Nc2+ {[%emt 0:00:00]} Kc4 {[%emt 0:00:07]} 66. b5 {[%emt 0:00:02]} Kd5 {[%emt 0:00:01]} 67. Na3 {[%emt 0:00:02]} Ke5 {[%emt 0:00:02]} 68. Nc4+ {[%emt 0:00:00]} Kd5 {[%emt 0:00:01]} 69. Nd2 {[%emt 0:00:01]} Kc5 {[%emt 0:01:16]} 70. Nf1 {[%emt 0:00:00]} f5 {[%emt 0:00:00]} 71. h4 {[%emt 0:00:00]} 1-0

[Event "Austria Championship Blitz 2024"]
[Site "Innsbruck"]
[Date "2024.06.01"]
[Round "8.13"]
[White "Leonov, Leonid"]
[Black "Vrban, Damir"]
[Result "0-1"]
[ECO "B03"]
[WhiteElo "1739"]
[BlackElo "2151"]
[Annotator "RC"]
[PlyCount "58"]
[EventDate "2024.06.01"]
[EventType "swiss"]
[EventCountry "AUT"]
[SourceTitle "playchess.com"]
[Source "ChessBase"]
[SourceQuality "1"]
[TimeControl "180+2"]

1. e4 {[%emt 0:00:03]} Nf6 {[%emt 0:00:04]} 2. e5 {[%emt 0:00:01]} Nd5 {[%emt 0:00:01]} 3. c4 {[%emt 0:00:01]} Nb6 {[%emt 0:00:01]} 4. d4 {[%emt 0:00:01]} d6 {[%emt 0:00:02]} 5. f4 {[%emt 0:00:01]} g6 {[%emt 0:00:11]} 6. Nc3 {[%emt 0:00:05]} Bg7 {[%emt 0:00:02]} 7. Be3 {[%emt 0:00:01]} Be6 {[%emt 0:00:03]} 8. d5 {[%emt 0:00:10]} Bf5 {[%emt 0:00:05]} 9. Nf3 {[%emt 0:00:02]} Bg4 {[%emt 0:00:15]} 10. Bd4 {[%emt 0:00:18]} O-O {[%emt 0:00:16]} 11. Bd3 {[%emt 0:00:17]} c6 {[%emt 0:00:27]} 12. O-O {[%emt 0:00:11]} cxd5 {[%emt 0:00:04]} 13. cxd5 {[%emt 0:00:03]} dxe5 {[%emt 0:00:22]} 14. Bxe5 {[%emt 0:00:18]} Nxd5 {[%emt 0:00:03]} 15. Nxd5 {[%emt 0:00:13]} Qxd5 {[%emt 0:00:02]} 16. Bxg7 {[%emt 0:00:03]} Kxg7 {[%emt 0:00:03]} 17. Qe2 {[%emt 0:00:01]} Nc6 {[%emt 0:00:06]} 18. Rad1 {[%emt 0:00:08]} Nd4 {[%emt 0:00:27]} 19. Qxe7 {[%emt 0:00:27]} Nxf3+ {[%emt 0:00:57]} 20. gxf3 {[%emt 0:00:07]} Bxf3 {[%emt 0:00:01]} 21. Be2 {[%emt 0:00:27]} Qf5 {[%emt 0:00:07]} 22. Bxf3 {[%emt 0:00:10]} Rfe8 {[%emt 0:00:01]} 23. Qxb7 {[%emt 0:00:13]} Rab8 {[%emt 0:00:02]} 24. Qxa7 {[%emt 0:00:11]} Rxb2 {[%emt 0:00:01]} 25. Qd4+ {[%emt 0:00:03]} Qf6 {[%emt 0:00:01]} 26. Qxf6+ {[%emt 0:00:07]} Kxf6 {[%emt 0:00:01]} 27. Rf2 {[%emt 0:00:03]} Rb4 {[%emt 0:00:01]} 28. Bd5 {[%emt 0:00:04]} Re3 {[%emt 0:00:02]} 29. Kg2 {[%emt 0:00:11]} Ra4 {[%emt 0:00:12]} 0-1

[Event "Austria Championship Blitz 2024"]
[Site "Innsbruck"]
[Date "2024.06.01"]
[Round "8.14"]
[White "Gschiel, Alexander"]
[Black "Guba, Viktor"]
[Result "1-0"]
[ECO "E94"]
[WhiteElo "2355"]
[BlackElo "1891"]
[Annotator "RC"]
[PlyCount "82"]
[EventDate "2024.06.01"]
[EventType "swiss"]
[EventCountry "AUT"]
[SourceTitle "playchess.com"]
[Source "ChessBase"]
[SourceQuality "1"]
[TimeControl "180+2"]

1. d4 {[%emt 0:00:01]} Nf6 {[%emt 0:00:01]} 2. c4 {[%emt 0:00:01]} g6 {[%emt 0:00:01]} 3. Nc3 {[%emt 0:00:01]} Bg7 {[%emt 0:00:01]} 4. e4 {[%emt 0:00:00]} O-O {[%emt 0:00:02]} 5. Be2 {[%emt 0:00:02]} d6 {[%emt 0:00:02]} 6. Nf3 {[%emt 0:00:01]} e5 {[%emt 0:00:03]} 7. d5 {[%emt 0:00:03]} Na6 {[%emt 0:00:06]} 8. O-O {[%emt 0:00:04]} Nc5 {[%emt 0:00:03]} 9. Qc2 {[%emt 0:00:02]} a5 {[%emt 0:00:03]} 10. Be3 {[%emt 0:00:03]} Ncd7 {[%emt 0:00:24]} 11. a3 {[%emt 0:00:04]} Ne8 {[%emt 0:00:14]} 12. Nd2 {[%emt 0:00:02]} Ndf6 {[%emt 0:00:01]} 13. f3 {[%emt 0:00:05]} Nh5 {[%emt 0:00:05]} 14. b4 {[%emt 0:00:07]} f5 {[%emt 0:00:10]} 15. c5 {[%emt 0:00:11]} fxe4 {[%emt 0:00:14]} 16. Ndxe4 {[%emt 0:00:16]} Nf4 {[%emt 0:00:02]} 17. Rac1 {[%emt 0:00:35]} axb4 {[%emt 0:00:10]} 18. axb4 {[%emt 0:00:01]} Nf6 {[%emt 0:00:12]} 19. cxd6 {[%emt 0:00:02]} cxd6 {[%emt 0:00:02]} 20. Bc4 {[%emt 0:00:06]} Bf5 {[%emt 0:00:11]} 21. Qb3 {[%emt 0:00:21]} Bh6 {[%emt 0:00:26]} 22. Nxf6+ {[%emt 0:00:14]} Qxf6 {[%emt 0:00:04]} 23. Ne4 {[%emt 0:00:04]} Bxe4 {[%emt 0:00:11]} 24. fxe4 {[%emt 0:00:01]} Qg5 {[%emt 0:00:02]} 25. Bxf4 {[%emt 0:00:38]} Rxf4 {[%emt 0:00:01]} 26. Bd3 {[%emt 0:00:17]} Raf8 {[%emt 0:00:08]} 27. g3 {[%emt 0:00:19]} Rxf1+ {[%emt 0:00:15]} 28. Rxf1 {[%emt 0:00:01]} Qe3+ {[%emt 0:00:09]} 29. Kg2 {[%emt 0:00:01]} Rxf1 30. Kxf1 {[%emt 0:00:01]} Qf3+ {[%emt 0:00:08]} 31. Ke1 {[%emt 0:00:01]} Be3 {[%emt 0:00:02]} 32. Be2 {[%emt 0:00:06]} Qxe4 {[%emt 0:00:10]} 33. Qc3 {[%emt 0:00:06]} Qh1+ {[%emt 0:00:17]} 34. Bf1 {[%emt 0:00:01]} Qe4 {[%emt 0:00:01]} 35. Qc8+ {[%emt 0:00:04]} Kg7 {[%emt 0:00:00]} 36. Qxb7+ Kh6 37. Be2 {[%emt 0:00:05]} Qb1+ {[%emt 0:00:03]} 38. Bd1 {[%emt 0:00:01]} Qe4 {[%emt 0:00:02]} 39. Qb5 {[%emt 0:00:05]} Bc5+ {[%emt 0:00:03]} 40. Kf1 {[%emt 0:00:06]} Bxb4 {[%emt 0:00:02]} 41. Be2 {[%emt 0:00:01]} Bc5 {[%emt 0:00:03]} 1-0